[Event "January 9 Late 2024"]
[Site "https://www.chess.com"]
[Date "2024.01.09"]
[Round "1"]
[White "Martinez Ramirez, Lennis"]
[Black "Figorito, Nick"]
[Result "0-1"]
[Board "134"]
[TimeControl "180+1"]
[WhiteFideId "3509079"]
[BlackFideId "30923689"]
[WhiteElo "2712"]
[BlackElo "2387"]
[WhiteTeam "CUB"]
[BlackTeam "USA"]
[WhiteClock "0:00:02"]
[BlackClock "0:00:07"]

1. d4 {[%clk 0:02:32]}  Nf6 {[%clk 0:02:58]} 2. Nf3 {[%clk 0:02:30]}  g6 {[%clk 0:02:59]} 3. c4 {[%clk 0:02:29]}  Bg7 {[%clk 0:02:59]} 4. Nc3 {[%clk 0:02:30]}  d5 {[%clk 0:02:59]} 5. Qa4+ {[%clk 0:02:26]}  c6 {[%clk 0:02:59]} 6. cxd5 {[%clk 0:02:24]}  Nxd5 {[%clk 0:03:00]} 7. e4 {[%clk 0:02:24]}  Nxc3 {[%clk 0:03:00]} 8. bxc3 {[%clk 0:02:25]}  O-O {[%clk 0:03:00]} 9. Ba3 {[%clk 0:02:25]}  Bg4 {[%clk 0:02:49]} 10. Be2 {[%clk 0:02:25]}  Re8 {[%clk 0:02:49]} 11. Rd1 {[%clk 0:02:20]}  e6 {[%clk 0:02:46]} 12. O-O {[%clk 0:02:18]}  Nd7 {[%clk 0:02:45]} 13. h3 {[%clk 0:02:13]}  Bxf3 {[%clk 0:02:44]} 14. Bxf3 {[%clk 0:02:14]}  Nb6 {[%clk 0:02:44]} 15. Qb3 {[%clk 0:02:14]}  Qc7 {[%clk 0:02:33]} 16. e5 {[%clk 0:02:14]}  Nd5 {[%clk 0:02:24]} 17. c4 {[%clk 0:02:12]}  Ne7 {[%clk 0:02:03]} 18. Rb1 {[%clk 0:02:09]}  b6 {[%clk 0:02:00]} 19. Bd6 {[%clk 0:02:08]}  Qd7 {[%clk 0:01:59]} 20. c5 {[%clk 0:02:02]}  b5 {[%clk 0:01:55]} 21. a4 {[%clk 0:01:57]}  a6 {[%clk 0:01:54]} 22. Ra1 {[%clk 0:01:56]}  Nd5 {[%clk 0:01:51]} 23. Ra2 {[%clk 0:01:51]}  Qb7 {[%clk 0:01:42]} 24. Rfa1 {[%clk 0:01:50]}  h5 {[%clk 0:01:31]} 25. axb5 {[%clk 0:01:29]}  axb5 {[%clk 0:01:31]} 26. h4 {[%clk 0:01:18]}  Bh6 {[%clk 0:01:20]} 27. g3 {[%clk 0:01:18]}  Bg7 {[%clk 0:01:11]} 28. Kg2 {[%clk 0:01:17]}  Bh6 {[%clk 0:01:11]} 29. Be4 {[%clk 0:01:17]}  Bg7 {[%clk 0:01:08]} 30. Kh3 {[%clk 0:01:15]}  Bh6 {[%clk 0:01:07]} 31. Bg2 {[%clk 0:01:12]}  Bg7 {[%clk 0:01:07]} 32. Ra5 {[%clk 0:01:08]}  Rxa5 {[%clk 0:01:05]} 33. Rxa5 {[%clk 0:01:08]}  Ra8 {[%clk 0:01:05]} 34. Qa2 {[%clk 0:01:00]}  Rxa5 {[%clk 0:01:05]} 35. Qxa5 {[%clk 0:01:01]}  b4 {[%clk 0:01:03]} 36. Bxd5 {[%clk 0:00:55]}  exd5 {[%clk 0:01:03]} 37. Qb6 {[%clk 0:00:49]}  Qd7+ {[%clk 0:00:49]} 38. Kg2 {[%clk 0:00:49]}  Qf5 {[%clk 0:00:41]} 39. Qxb4 {[%clk 0:00:49]}  Qe4+ {[%clk 0:00:41]} 40. Kh2 {[%clk 0:00:48]}  Qe2 {[%clk 0:00:35]} 41. Kg1 {[%clk 0:00:43]}  Qd1+ {[%clk 0:00:34]} 42. Kg2 {[%clk 0:00:43]}  Qd3 {[%clk 0:00:23]} 43. Be7 {[%clk 0:00:37]}  Qe4+ {[%clk 0:00:22]} 44. Kg1 {[%clk 0:00:37]}  Kh7 {[%clk 0:00:18]} 45. Bg5 {[%clk 0:00:37]}  Bh6 {[%clk 0:00:14]} 46. Qd2 {[%clk 0:00:35]}  Bxg5 {[%clk 0:00:13]} 47. hxg5 {[%clk 0:00:35]}  Qb1+ {[%clk 0:00:13]} 48. Kg2 {[%clk 0:00:34]}  Qe4+ {[%clk 0:00:14]} 49. f3 {[%clk 0:00:35]}  Qf5 {[%clk 0:00:13]} 50. Qf4 {[%clk 0:00:34]}  Qc2+ {[%clk 0:00:13]} 51. Kh3 {[%clk 0:00:34]}  Kg8 {[%clk 0:00:12]} 52. e6 {[%clk 0:00:28]}  fxe6 {[%clk 0:00:07]} 53. Qc7 {[%clk 0:00:28]}  Qf5+ {[%clk 0:00:07]} 54. Kh4 {[%clk 0:00:23]}  Qxf3 {[%clk 0:00:07]} 55. Qc8+ {[%clk 0:00:22]}  Kg7 {[%clk 0:00:08]} 56. Qd7+ {[%clk 0:00:22]}  Kg8 {[%clk 0:00:08]} 57. Qe8+ {[%clk 0:00:16]}  Kg7 {[%clk 0:00:08]} 58. Qd7+ {[%clk 0:00:13]}  Kh8 {[%clk 0:00:06]} 59. Qd8+ {[%clk 0:00:10]}  Kg7 {[%clk 0:00:06]} 60. Qc7+ {[%clk 0:00:10]}  Kh8 {[%clk 0:00:05]} 61. Qe5+ {[%clk 0:00:08]}  Kg8 {[%clk 0:00:05]} 62. Qxe6+ {[%clk 0:00:08]}  Kg7 {[%clk 0:00:06]} 63. Qe7+ {[%clk 0:00:08]}  Kg8 {[%clk 0:00:06]} 64. Qe8+ {[%clk 0:00:08]}  Kg7 {[%clk 0:00:07]} 65. Qd7+ {[%clk 0:00:09]}  Kg8 {[%clk 0:00:07]} 66. Qe6+ {[%clk 0:00:03]}  Kg7 {[%clk 0:00:07]} 67. Qe5+ {[%clk 0:00:03]}  Kg8 {[%clk 0:00:07]} 68. Qc7 {[%clk 0:00:02]}  Qh1# {[%clk 0:00:07]} 0-1

[Event "January 9 Late 2024"]
[Site "https://www.chess.com"]
[Date "2024.01.09"]
[Round "1"]
[White "Rozman, Levy"]
[Black "Haszon, David"]
[Result "1-0"]
[Board "136"]
[TimeControl "180+1"]
[WhiteFideId "2039877"]
[BlackFideId "733610"]
[WhiteElo "2705"]
[BlackElo "2383"]
[WhiteTeam "USA"]
[BlackTeam "HUN"]
[WhiteClock "0:00:45"]
[BlackClock "0:00:00"]

1. d4 {[%clk 0:02:50]}  Nf6 {[%clk 0:02:54]} 2. Bg5 {[%clk 0:02:50]}  e6 {[%clk 0:02:51]} 3. Nd2 {[%clk 0:02:47]}  d5 {[%clk 0:02:49]} 4. e3 {[%clk 0:02:47]}  Be7 {[%clk 0:02:35]} 5. c3 {[%clk 0:02:47]}  O-O {[%clk 0:02:35]} 6. Bd3 {[%clk 0:02:47]}  c5 {[%clk 0:02:34]} 7. f4 {[%clk 0:02:47]}  Nc6 {[%clk 0:02:29]} 8. Ngf3 {[%clk 0:02:47]}  h6 {[%clk 0:02:19]} 9. h4 {[%clk 0:02:46]}  Ng4 {[%clk 0:02:17]} 10. Bxe7 {[%clk 0:02:40]}  Qxe7 {[%clk 0:02:11]} 11. Qe2 {[%clk 0:02:40]}  c4 {[%clk 0:02:05]} 12. Bc2 {[%clk 0:02:39]}  f5 {[%clk 0:02:04]} 13. Ne5 {[%clk 0:02:24]}  Ncxe5 {[%clk 0:02:03]} 14. fxe5 {[%clk 0:02:17]}  Bd7 {[%clk 0:01:51]} 15. e4 {[%clk 0:02:16]}  dxe4 {[%clk 0:01:38]} 16. Nxc4 {[%clk 0:02:09]}  Bb5 {[%clk 0:01:32]} 17. b3 {[%clk 0:02:04]}  Bxc4 {[%clk 0:01:25]} 18. bxc4 {[%clk 0:02:00]}  Rac8 {[%clk 0:01:22]} 19. Bb3 {[%clk 0:01:57]}  h5 {[%clk 0:01:11]} 20. O-O-O {[%clk 0:01:53]}  a5 {[%clk 0:01:06]} 21. Kb1 {[%clk 0:01:48]}  Ra8 {[%clk 0:01:03]} 22. a4 {[%clk 0:01:45]}  Qa3 {[%clk 0:00:59]} 23. Kc2 {[%clk 0:01:38]}  Rac8 {[%clk 0:00:41]} 24. c5 {[%clk 0:01:37]}  f4 {[%clk 0:00:20]} 25. Bxe6+ {[%clk 0:01:12]}  Kh8 {[%clk 0:00:17]} 26. Ra1 {[%clk 0:01:10]}  Ne3+ {[%clk 0:00:15]} 27. Kb1 {[%clk 0:01:09]}  f3 {[%clk 0:00:04]} 28. Qxe3 {[%clk 0:00:45]}  fxg2 {[%clk 0:00:05]} 29. Rc1 {[%clk 0:00:46]}  Rf1 {[%clk 0:00:00]} 30. Rxa3 {[%clk 0:00:45]} 1-0

[Event "January 9 Late 2024"]
[Site "https://www.chess.com"]
[Date "2024.01.09"]
[Round "1"]
[White "Bogaudinov, Rushan"]
[Black "Schmakel, Sam"]
[Result "1/2-1/2"]
[Board "137"]
[TimeControl "180+1"]
[WhiteFideId "4129288"]
[BlackFideId "2039311"]
[WhiteElo "2375"]
[BlackElo "2701"]
[WhiteTeam "RUS"]
[BlackTeam "USA"]
[WhiteClock "0:00:20"]
[BlackClock "0:00:05"]

1. d4 {[%clk 0:02:58]}  d5 {[%clk 0:02:57]} 2. Nf3 {[%clk 0:02:58]}  Bf5 {[%clk 0:02:53]} 3. e3 {[%clk 0:02:56]}  e6 {[%clk 0:02:35]} 4. Be2 {[%clk 0:02:54]}  Nf6 {[%clk 0:02:35]} 5. b3 {[%clk 0:02:54]}  h6 {[%clk 0:02:32]} 6. Bb2 {[%clk 0:02:54]}  c6 {[%clk 0:02:32]} 7. c4 {[%clk 0:02:53]}  Bb4+ {[%clk 0:02:27]} 8. Nbd2 {[%clk 0:02:53]}  Nbd7 {[%clk 0:02:27]} 9. O-O {[%clk 0:02:52]}  O-O {[%clk 0:02:27]} 10. a3 {[%clk 0:02:52]}  Bd6 {[%clk 0:02:27]} 11. b4 {[%clk 0:02:52]}  a5 {[%clk 0:02:19]} 12. b5 {[%clk 0:02:49]}  a4 {[%clk 0:01:51]} 13. Bc3 {[%clk 0:02:32]}  Qe7 {[%clk 0:01:49]} 14. Ne5 {[%clk 0:02:18]}  Ne4 {[%clk 0:01:43]} 15. Nxe4 {[%clk 0:02:13]}  Bxe4 {[%clk 0:01:44]} 16. Nxd7 {[%clk 0:02:10]}  Qxd7 {[%clk 0:01:45]} 17. c5 {[%clk 0:02:06]}  Be7 {[%clk 0:01:38]} 18. bxc6 {[%clk 0:01:53]}  bxc6 {[%clk 0:01:37]} 19. Bd3 {[%clk 0:01:52]}  f5 {[%clk 0:01:25]} 20. f3 {[%clk 0:01:47]}  Bxd3 {[%clk 0:01:24]} 21. Qxd3 {[%clk 0:01:47]}  Rfb8 {[%clk 0:01:18]} 22. Rab1 {[%clk 0:01:46]}  Qa7 {[%clk 0:01:10]} 23. Rb4 {[%clk 0:01:35]}  Rxb4 {[%clk 0:01:08]} 24. Bxb4 {[%clk 0:01:35]}  Bd8 {[%clk 0:00:56]} 25. e4 {[%clk 0:01:35]}  fxe4 {[%clk 0:00:53]} 26. fxe4 {[%clk 0:01:35]}  Ba5 {[%clk 0:00:46]} 27. Bxa5 {[%clk 0:01:30]}  Qxa5 {[%clk 0:00:47]} 28. exd5 {[%clk 0:01:25]}  exd5 {[%clk 0:00:47]} 29. Qg6 {[%clk 0:01:22]}  Qc7 {[%clk 0:00:47]} 30. Qe6+ {[%clk 0:01:20]}  Kh8 {[%clk 0:00:47]} 31. Rf7 {[%clk 0:01:19]}  Qa5 {[%clk 0:00:41]} 32. Qxc6 {[%clk 0:01:02]}  Rd8 {[%clk 0:00:24]} 33. h3 {[%clk 0:00:56]}  Qd2 {[%clk 0:00:18]} 34. Qc7 {[%clk 0:00:45]}  Qxd4+ {[%clk 0:00:17]} 35. Kh2 {[%clk 0:00:45]}  Rg8 {[%clk 0:00:14]} 36. c6 {[%clk 0:00:44]}  Qc5 {[%clk 0:00:14]} 37. Qd7 {[%clk 0:00:40]}  d4 {[%clk 0:00:10]} 38. c7 {[%clk 0:00:40]}  d3 {[%clk 0:00:01]} 39. Qxd3 {[%clk 0:00:36]}  Qe5+ {[%clk 0:00:01]} 40. Qg3 {[%clk 0:00:35]}  Qc5 {[%clk 0:00:02]} 41. Rd7 {[%clk 0:00:32]}  Kh7 {[%clk 0:00:02]} 42. Qd3+ {[%clk 0:00:31]}  Kh8 {[%clk 0:00:02]} 43. Qd5 {[%clk 0:00:28]}  Qc3 {[%clk 0:00:01]} 44. Qxg8+ {[%clk 0:00:24]}  Kxg8 {[%clk 0:00:01]} 45. Rd8+ {[%clk 0:00:25]}  Kh7 {[%clk 0:00:02]} 46. c8=Q {[%clk 0:00:26]}  Qe5+ {[%clk 0:00:02]} 47. Kg1 {[%clk 0:00:24]}  Qe1+ {[%clk 0:00:03]} 48. Kh2 {[%clk 0:00:24]}  Qe5+ {[%clk 0:00:04]} 49. Kg1 {[%clk 0:00:20]}  Qe1+ {[%clk 0:00:04]} 50. Kh2 {[%clk 0:00:20]}  Qe5+ {[%clk 0:00:05]} 1/2-1/2

[Event "January 9 Late 2024"]
[Site "https://www.chess.com"]
[Date "2024.01.09"]
[Round "1"]
[White "Gerbelli Neto, Eduardo"]
[Black "Leiva, Gianmarco"]
[Result "0-1"]
[Board "139"]
[TimeControl "180+1"]
[WhiteFideId "2103281"]
[BlackFideId "3804399"]
[WhiteElo "2373"]
[BlackElo "2692"]
[WhiteTeam "BRA"]
[BlackTeam "PER"]
[WhiteClock "0:00:57"]
[BlackClock "0:00:26"]

1. e4 {[%clk 0:03:00]}  c6 {[%clk 0:02:03]} 2. d4 {[%clk 0:02:59]}  d5 {[%clk 0:02:00]} 3. exd5 {[%clk 0:03:00]}  cxd5 {[%clk 0:02:00]} 4. c4 {[%clk 0:03:01]}  Nf6 {[%clk 0:01:57]} 5. Nc3 {[%clk 0:03:01]}  e6 {[%clk 0:01:52]} 6. Nf3 {[%clk 0:03:01]}  Bb4 {[%clk 0:01:51]} 7. cxd5 {[%clk 0:03:00]}  Nxd5 {[%clk 0:01:51]} 8. Qc2 {[%clk 0:03:01]}  Nc6 {[%clk 0:01:47]} 9. Bd3 {[%clk 0:03:01]}  Nf6 {[%clk 0:01:45]} 10. a3 {[%clk 0:02:56]}  Ba5 {[%clk 0:01:45]} 11. O-O {[%clk 0:02:53]}  O-O {[%clk 0:01:41]} 12. Bg5 {[%clk 0:02:50]}  h6 {[%clk 0:01:17]} 13. Be3 {[%clk 0:02:34]}  Bd7 {[%clk 0:00:58]} 14. Ne5 {[%clk 0:02:26]}  Rc8 {[%clk 0:00:54]} 15. Qd2 {[%clk 0:02:05]}  Nxe5 {[%clk 0:00:41]} 16. dxe5 {[%clk 0:02:06]}  Nd5 {[%clk 0:00:40]} 17. Bxh6 {[%clk 0:01:45]}  Nxc3 {[%clk 0:00:40]} 18. Bg5 {[%clk 0:01:43]}  Ne4 {[%clk 0:00:37]} 19. Bxd8 {[%clk 0:01:35]}  Bxd2 {[%clk 0:00:32]} 20. Bxe4 {[%clk 0:01:23]}  Rfxd8 {[%clk 0:00:32]} 21. Rfd1 {[%clk 0:01:24]}  Bc6 {[%clk 0:00:32]} 22. Bxc6 {[%clk 0:01:20]}  Rxc6 {[%clk 0:00:32]} 23. Kf1 {[%clk 0:01:20]}  Rc4 {[%clk 0:00:28]} 24. f3 {[%clk 0:01:19]}  Rc5 {[%clk 0:00:27]} 25. f4 {[%clk 0:01:15]}  Rcd5 {[%clk 0:00:26]} 26. g3 {[%clk 0:01:13]}  g5 {[%clk 0:00:27]} 27. Ke2 {[%clk 0:01:07]}  gxf4 {[%clk 0:00:26]} 28. gxf4 {[%clk 0:00:57]}  Bxf4 {[%clk 0:00:26]} 0-1

[Event "January 9 Late 2024"]
[Site "https://www.chess.com"]
[Date "2024.01.09"]
[Round "1"]
[White "Sieciechowicz, Marcin"]
[Black "Sanchez Alvares, Kelvin Antonio"]
[Result "1-0"]
[Board "140"]
[TimeControl "180+1"]
[WhiteFideId "1130170"]
[BlackFideId "3906680"]
[WhiteElo "2689"]
[BlackElo "2371"]
[WhiteTeam "POL"]
[BlackTeam "VEN"]
[WhiteClock "0:00:03"]
[BlackClock "0:00:02"]

1. d4 {[%clk 0:02:59]}  d5 {[%clk 0:02:58]} 2. Bf4 {[%clk 0:02:57]}  Nf6 {[%clk 0:02:57]} 3. e3 {[%clk 0:02:57]}  c5 {[%clk 0:02:54]} 4. c3 {[%clk 0:02:57]}  Nc6 {[%clk 0:02:52]} 5. Nd2 {[%clk 0:02:56]}  Qb6 {[%clk 0:02:42]} 6. Qb3 {[%clk 0:02:55]}  c4 {[%clk 0:02:35]} 7. Qc2 {[%clk 0:02:55]}  Bg4 {[%clk 0:02:31]} 8. e4 {[%clk 0:02:55]}  e6 {[%clk 0:02:24]} 9. Be2 {[%clk 0:02:55]}  Bxe2 {[%clk 0:02:11]} 10. Nxe2 {[%clk 0:02:56]}  Be7 {[%clk 0:02:11]} 11. O-O {[%clk 0:02:52]}  O-O {[%clk 0:02:06]} 12. e5 {[%clk 0:02:52]}  Nd7 {[%clk 0:01:43]} 13. b3 {[%clk 0:02:52]}  cxb3 {[%clk 0:01:37]} 14. axb3 {[%clk 0:02:53]}  a5 {[%clk 0:01:35]} 15. Be3 {[%clk 0:02:52]}  Qa6 {[%clk 0:01:26]} 16. c4 {[%clk 0:02:47]}  Nb4 {[%clk 0:01:23]} 17. Qb2 {[%clk 0:02:41]}  dxc4 {[%clk 0:01:06]} 18. bxc4 {[%clk 0:02:33]}  Nb6 {[%clk 0:01:03]} 19. d5 {[%clk 0:01:09]}  exd5 {[%clk 0:00:31]} 20. Bxb6 {[%clk 0:01:09]}  Qxb6 {[%clk 0:00:21]} 21. cxd5 {[%clk 0:01:08]}  Qa6 {[%clk 0:00:20]} 22. Nf4 {[%clk 0:01:05]}  Bg5 {[%clk 0:00:18]} 23. Nh3 {[%clk 0:00:54]}  Bh6 {[%clk 0:00:11]} 24. Ne4 {[%clk 0:00:28]}  Nxd5 {[%clk 0:00:10]} 25. Nd6 {[%clk 0:00:26]}  Ne7 {[%clk 0:00:09]} 26. f4 {[%clk 0:00:18]}  Nc6 {[%clk 0:00:09]} 27. Nf5 {[%clk 0:00:16]}  Nb4 {[%clk 0:00:09]} 28. Kh1 {[%clk 0:00:11]}  Rfd8 {[%clk 0:00:08]} 29. Qf2 {[%clk 0:00:10]}  Qe6 {[%clk 0:00:08]} 30. g4 {[%clk 0:00:05]}  b5 {[%clk 0:00:05]} 31. Ng1 {[%clk 0:00:03]}  Nd3 {[%clk 0:00:05]} 32. Qg2 {[%clk 0:00:03]}  Bxf4 {[%clk 0:00:04]} 33. Ne2 {[%clk 0:00:03]}  Bxe5 {[%clk 0:00:05]} 34. Neg3 {[%clk 0:00:03]}  Bf6 {[%clk 0:00:05]} 35. Nh5 {[%clk 0:00:03]}  Qd5 {[%clk 0:00:06]} 36. Qxd5 {[%clk 0:00:02]}  Rxd5 {[%clk 0:00:05]} 37. Nxf6+ {[%clk 0:00:03]}  gxf6 {[%clk 0:00:05]} 38. Ne7+ {[%clk 0:00:04]}  Kf8 {[%clk 0:00:06]} 39. Nxd5 {[%clk 0:00:04]}  b4 {[%clk 0:00:06]} 40. Nxf6 {[%clk 0:00:04]}  Nc5 {[%clk 0:00:06]} 41. Rfc1 {[%clk 0:00:04]}  Ne6 {[%clk 0:00:06]} 42. Nd7+ {[%clk 0:00:04]}  Ke7 {[%clk 0:00:06]} 43. Nb6 {[%clk 0:00:05]}  Ra6 {[%clk 0:00:04]} 44. Na4 {[%clk 0:00:05]}  Ra7 {[%clk 0:00:04]} 45. Nc5 {[%clk 0:00:04]}  Nd4 {[%clk 0:00:04]} 46. Re1+ {[%clk 0:00:04]}  Kd6 {[%clk 0:00:05]} 47. Ne4+ {[%clk 0:00:03]}  Kd5 {[%clk 0:00:05]} 48. Nd2 {[%clk 0:00:03]}  Kc5 {[%clk 0:00:05]} 49. Rec1+ {[%clk 0:00:03]}  Kd5 {[%clk 0:00:05]} 50. Rd1 {[%clk 0:00:04]}  a4 {[%clk 0:00:05]} 51. Nf3 {[%clk 0:00:03]}  b3 {[%clk 0:00:04]} 52. Nxd4 {[%clk 0:00:03]}  Kc4 {[%clk 0:00:04]} 53. Nxb3 {[%clk 0:00:03]}  Kxb3 {[%clk 0:00:02]} 54. Rdb1+ {[%clk 0:00:03]} 1-0

[Event "January 9 Late 2024"]
[Site "https://www.chess.com"]
[Date "2024.01.09"]
[Round "1"]
[White "Llorente Zaro, Alfonso"]
[Black "Atanejhad, Sahebali"]
[Result "1-0"]
[Board "142"]
[TimeControl "180+1"]
[WhiteFideId "2254131"]
[BlackFideId "12506664"]
[WhiteElo "2687"]
[BlackElo "2369"]
[WhiteTeam "ESP"]
[BlackTeam "IRI"]
[WhiteClock "0:02:41"]
[BlackClock "0:02:20"]

1. e4 {[%clk 0:03:00]}  e5 {[%clk 0:02:54]} 2. Nf3 {[%clk 0:03:00]}  Nc6 {[%clk 0:02:51]} 3. Nc3 {[%clk 0:02:59]}  Nf6 {[%clk 0:02:49]} 4. h3 {[%clk 0:03:00]}  Bb4 {[%clk 0:02:47]} 5. Nd5 {[%clk 0:02:59]}  Bc5 {[%clk 0:02:46]} 6. c3 {[%clk 0:02:58]}  d6 {[%clk 0:02:46]} 7. d4 {[%clk 0:02:52]}  exd4 {[%clk 0:02:46]} 8. cxd4 {[%clk 0:02:53]}  Bb4+ {[%clk 0:02:46]} 9. Nxb4 {[%clk 0:02:51]}  Nxb4 {[%clk 0:02:47]} 10. Qa4+ {[%clk 0:02:51]}  Nc6 {[%clk 0:02:46]} 11. d5 {[%clk 0:02:51]}  Bd7 {[%clk 0:02:43]} 12. dxc6 {[%clk 0:02:50]}  Bxc6 {[%clk 0:02:43]} 13. Bb5 {[%clk 0:02:50]}  O-O {[%clk 0:02:43]} 14. Bxc6 {[%clk 0:02:48]}  bxc6 {[%clk 0:02:44]} 15. Qxc6 {[%clk 0:02:48]}  Nxe4 {[%clk 0:02:42]} 16. O-O {[%clk 0:02:48]}  Re8 {[%clk 0:02:42]} 17. Re1 {[%clk 0:02:46]}  d5 {[%clk 0:02:38]} 18. Bf4 {[%clk 0:02:42]}  Rc8 {[%clk 0:02:20]} 19. Rad1 {[%clk 0:02:41]} 1-0

[Event "January 9 Late 2024"]
[Site "https://www.chess.com"]
[Date "2024.01.09"]
[Round "1"]
[White "Brodowski, Piotr"]
[Black "Zeneli, Klendi"]
[Result "0-1"]
[Board "144"]
[TimeControl "180+1"]
[WhiteFideId "1124480"]
[BlackFideId "4706609"]
[WhiteElo "2678"]
[BlackElo "2369"]
[WhiteTeam "POL"]
[BlackTeam "ALB"]
[WhiteClock "0:00:36"]
[BlackClock "0:00:21"]

1. d4 {[%clk 0:02:54]}  Nf6 {[%clk 0:02:59]} 2. g3 {[%clk 0:02:52]}  e6 {[%clk 0:02:57]} 3. Bg2 {[%clk 0:02:51]}  d5 {[%clk 0:02:57]} 4. c4 {[%clk 0:02:51]}  Be7 {[%clk 0:02:57]} 5. Nc3 {[%clk 0:02:51]}  dxc4 {[%clk 0:02:50]} 6. Nf3 {[%clk 0:02:51]}  c6 {[%clk 0:02:49]} 7. a4 {[%clk 0:02:50]}  Nbd7 {[%clk 0:02:42]} 8. O-O {[%clk 0:02:48]}  a5 {[%clk 0:02:40]} 9. e4 {[%clk 0:02:46]}  O-O {[%clk 0:02:38]} 10. Qe2 {[%clk 0:02:45]}  Nb6 {[%clk 0:02:37]} 11. Rd1 {[%clk 0:02:45]}  Bb4 {[%clk 0:02:13]} 12. Ne5 {[%clk 0:02:44]}  Qe7 {[%clk 0:02:10]} 13. Bf4 {[%clk 0:02:38]}  Rd8 {[%clk 0:02:09]} 14. Nxc4 {[%clk 0:02:37]}  Nxc4 {[%clk 0:02:09]} 15. Qxc4 {[%clk 0:02:38]}  h6 {[%clk 0:01:51]} 16. Rac1 {[%clk 0:02:37]}  Bd7 {[%clk 0:01:40]} 17. Bc7 {[%clk 0:02:23]}  Rdc8 {[%clk 0:01:37]} 18. Bb6 {[%clk 0:02:23]}  Be8 {[%clk 0:01:34]} 19. h3 {[%clk 0:02:16]}  Ra6 {[%clk 0:01:30]} 20. Bc5 {[%clk 0:02:16]}  Bxc5 {[%clk 0:01:30]} 21. dxc5 {[%clk 0:02:17]}  Raa8 {[%clk 0:01:30]} 22. Rd6 {[%clk 0:02:16]}  Nd7 {[%clk 0:01:27]} 23. Rcd1 {[%clk 0:02:16]}  b6 {[%clk 0:01:09]} 24. cxb6 {[%clk 0:02:13]}  Nxb6 {[%clk 0:01:10]} 25. Qc5 {[%clk 0:02:10]}  Nd7 {[%clk 0:01:06]} 26. Qd4 {[%clk 0:02:10]}  Nf6 {[%clk 0:00:59]} 27. Qc5 {[%clk 0:02:01]}  Qb7 {[%clk 0:00:55]} 28. R1d2 {[%clk 0:01:59]}  Qb4 {[%clk 0:00:55]} 29. Qe5 {[%clk 0:01:49]}  Rab8 {[%clk 0:00:49]} 30. R6d4 {[%clk 0:01:42]}  Qb6 {[%clk 0:00:47]} 31. Qd6 {[%clk 0:01:13]}  c5 {[%clk 0:00:42]} 32. Qxb6 {[%clk 0:01:11]}  Rxb6 {[%clk 0:00:43]} 33. Rd6 {[%clk 0:01:11]}  Rcb8 {[%clk 0:00:42]} 34. Rxb6 {[%clk 0:01:09]}  Rxb6 {[%clk 0:00:43]} 35. e5 {[%clk 0:01:10]}  Nd7 {[%clk 0:00:40]} 36. f4 {[%clk 0:01:09]}  Rb4 {[%clk 0:00:35]} 37. Bf1 {[%clk 0:01:07]}  Kf8 {[%clk 0:00:29]} 38. Bb5 {[%clk 0:01:02]}  Ke7 {[%clk 0:00:29]} 39. Kf2 {[%clk 0:01:01]}  Nb6 {[%clk 0:00:28]} 40. Ke3 {[%clk 0:00:31]}  Bxb5 {[%clk 0:00:25]} 41. axb5 {[%clk 0:00:31]}  Nc4+ {[%clk 0:00:25]} 42. Kd3 {[%clk 0:00:31]}  Nxd2 {[%clk 0:00:26]} 43. Kxd2 {[%clk 0:00:32]}  Rxb2+ {[%clk 0:00:26]} 44. Kd3 {[%clk 0:00:32]}  Rb4 {[%clk 0:00:24]} 45. Ne4 {[%clk 0:00:32]}  Rxe4 {[%clk 0:00:21]} 46. Kxe4 {[%clk 0:00:32]}  a4 {[%clk 0:00:21]} 47. Kd3 {[%clk 0:00:33]}  Kd7 {[%clk 0:00:21]} 48. Kc3 {[%clk 0:00:34]}  Kc7 {[%clk 0:00:21]} 49. Kc4 {[%clk 0:00:35]}  Kb6 {[%clk 0:00:21]} 50. g4 {[%clk 0:00:36]}  a3 {[%clk 0:00:20]} 51. Kb3 {[%clk 0:00:36]}  Kxb5 {[%clk 0:00:20]} 52. Kxa3 {[%clk 0:00:37]}  Kc4 {[%clk 0:00:21]} 53. Kb2 {[%clk 0:00:36]}  Kd3 {[%clk 0:00:21]} 0-1